Cogmind - Beta 14 @@@ ROGUE MODE // 2025.01.19 @ 00:27:13 Player: Adam_the_Great Result: Destroyed by Y-45 Defender with Beam Rifle Performance ------------- Evolutions (2) 1000 Regions Visited (5) 1000 Robots Destroyed (55) 275 Value Destroyed (1358) 1358 Prototype IDs (1) 20 Alien Tech Used (0) 0 Bonus (39) 39 TOTAL SCORE: 3692 Bonus ------- Follower Combat Kills 52 Friendly Fire -13 Cogmind --------- Core Integrity 0/550 Matter 199/300 Energy 100/100 System Corruption 0% Temperature Warm (103) Movement Core (400) Ox7 Location -8/Storage Parts ------- > --- POWER (1) -------- (None) > --- PROPULSION (3) --- (None) > --- UTILITY (4) ------ Large Storage Unit Transport Network Coupler > --- WEAPON (3) ------- Advanced Beam Rifle > --- INVENTORY (15) --- Light Nuclear Core Light Nuclear Core Light Treads Light Treads Light Treads Light Treads Heat Sink Insulated Plating Advanced Beam Rifle Advanced Beam Rifle Autogun Autogun Datajack Remote Datajack Peak State ------------ > --- POWER ------------ Ion Engine > --- PROPULSION ------- Light Treads Light Treads Armored Treads > --- UTILITY ---------- Large Storage Unit Recoil Stabilizer Recoil Stabilizer Insulated Plating > --- WEAPON ----------- Advanced Beam Rifle Autogun Autogun > --- INVENTORY -------- Ion Engine Improved Ion Engine Light Treads Light Treads Aluminum Leg Transport Network Coupler Insulated Plating Insulated Plating Medium Laser Advanced Beam Rifle Advanced Beam Rifle Advanced Beam Rifle Autogun Autogun Datajack [Rating: 27] Favorites ----------- Power Ion Engine Engine Ion Engine Propulsion Light Treads Treads Light Treads Leg Aluminum Leg Utility Medium Armor Plating Device Recoil Stabilizer Storage Large Storage Unit Processor Transport Network Coupler Protection Medium Armor Plating Weapon Autogun Energy Gun Advanced Beam Rifle Ballistic Gun Autogun Special Weapon Remote Datajack Special Melee Weapon Datajack Build | -11 -10 -9 -9 -8 -8 ------- Run | Yrd Mat Mat Min Mat Sto Slots Evolved 4 | . . 2 . 2 . Power . | . . . . . . Propulsion 1 | . . 1 . . . Utility 2 | . . 1 . 1 . Weapon 1 | . . . . 1 . Parts Attached 53 | 6 11 12 3 11 10 Power 6 | 1 1 2 . 1 1 Engine 6 | 1 1 2 . 1 1 Core . | . . . . . . Reactor . | . . . . . . Propulsion 10 | 2 . 4 2 1 1 Treads 7 | 2 . 1 2 1 1 Leg 3 | . . 3 . . . Wheel . | . . . . . . Hover . | . . . . . . Flight . | . . . . . . Utility 15 | 1 3 3 . 5 3 Device 3 | . . . . 2 1 Storage 2 | 1 1 . . . . Processor 1 | . . . . . 1 Hackware . | . . . . . . Protection 9 | . 2 3 . 3 1 Artifact . | . . . . . . Weapon 22 | 2 7 3 1 4 5 Energy Gun 4 | . 1 . . 1 2 Energy Cannon . | . . . . . . Ballistic Gun 12 | 2 2 3 1 2 2 Ballistic Cannon . | . . . . . . Launcher . | . . . . . . Special Weapon 2 | . . . . 1 1 Impact Weapon . | . . . . . . Slashing Weapon . | . . . . . . Piercing Weapon . | . . . . . . Special Melee Weapon 4 | . 4 . . . . Unidentified Prototypes 1 | . . . . 1 . Parts Lost 21 | . . 7 1 1 12 Power 2 | . . . . 1 1 Propulsion 7 | . . 3 . . 4 Utility 6 | . . 1 1 . 4 Weapon 6 | . . 3 . . 3 Highest Loss Streak 8 | . . 3 1 1 8 To Critical Strikes . | . . . . . . Average Slot Usage (%) 89 | . 99 93 66 97 94 Engine 11 | . 14 11 11 8 8 Treads 17 | . 28 9 9 25 24 Leg 8 | . . 20 12 . . Device 3 | . . . . 14 8 Storage 11 | . 14 11 11 9 9 Processor 1 | . . . . . 9 Protection 12 | . 13 18 6 11 7 Energy Gun 2 | . 4 . . . 11 Ballistic Gun 18 | . 17 21 16 22 12 Special Melee Weapon 1 | . 6 . . . . Peak Build Rating 27 | 6 9 13 11 27 27 Average Rating 13 | 4 8 11 9 23 24 On Entrance 10 | . 6 9 9 9 27 Naked Turns . | . . . . . . Heaviest Build 44 | 13 33 44 38 43 38 Greatest Support 60 | 40 40 60 40 60 60 Greatest Overweight (x) 3 | 3 . 2 1 1 . Average Overweight (x) . | . . . . . . Largest Inventory Capacity 15 | 8 15 15 15 15 15 Average Capacity 13 | 7 8 15 15 15 15 Most Carried 15 | 4 8 13 9 15 15 Average Carried 9 | 2 7 8 8 11 13 Final Capacity 15 | 8 15 15 15 15 15 Final Carried 15 | 4 8 9 8 15 14 Class Distribution -------------------- 75% | Mutant 12% | Gunner 9% | Tank Dominant Class ---------------- Mutant | -10/Materials Mutant | -9/Materials Mutant | -9/Mines Gunner | -8/Materials Tank | -8/Storage Resources | -11 -10 -9 -9 -8 -8 ----------- Run | Yrd Mat Mat Min Mat Sto Matter Collected 1729 | 179 270 511 189 289 291 Remotely . | . . . . . . Salvage Created 1846 | . 476 581 152 289 348 Parts 118 | . 25 44 13 21 15 Haulers Intercepted 1 | . . . . 1 . Recyclers Shooed 1 | . . 1 . . . Parts Field Recycled . | . . . . . . Retrieved Matter . | . . . . . . Parts Self-Destructed . | . . . . . . Prevented . | . . . . . . Kills | -11 -10 -9 -9 -8 -8 ------- Run | Yrd Mat Mat Min Mat Sto Combat Hostiles Destroyed 45 | . 11 19 3 5 7 Guns 45 | . 11 19 3 5 7 Classes Destroyed 8 | . 4 2 1 1 . Worker 5 | . 1 3 1 . . Builder 1 | . . 1 . . . Tunneler 1 | . . . 1 . . Hauler 1 | . . . . 1 . Recycler 2 | . 2 . . . . Swarmer 18 | . 6 11 . . 1 Grunt 21 | . 5 6 3 3 4 Sentry 6 | . . 2 . 2 2 Best Kill Streak 5 | . 5 5 4 3 4 Combat Bots Only 5 | . 3 5 3 3 4 Max Kills in Single Turn 2 | . 1 2 1 1 1 Gunslinging 1 | . . 1 . . . Exploded . | . . . . . . Melee . | . . . . . . Uniques/NPCs Destroyed . | . . . . . . Combat | -11 -10 -9 -9 -8 -8 -------- Run | Yrd Mat Mat Min Mat Sto Hostile Shots Fired 398 | . 55 151 12 34 146 Missed 77 | . 14 38 1 6 18 Damage Taken 4128 | . 402 1288 136 427 1875 Core 768 | . 57 144 17 40 510 Absorbed by Shields . | . . . . . . Regen/Repaired (Parts) 82 | . . 82 . . . Core Remaining (%) 78 | 100 77 . 59 . . Volleys Fired 166 | . 24 65 12 22 43 Largest 3 | . 2 2 2 3 3 Hottest 145 | . 70 43 46 69 145 Shots Fired 343 | . 48 128 22 50 95 Gun 331 | . 48 128 22 46 87 Cannon . | . . . . . . Launcher . | . . . . . . Special 12 | . . . . 4 8 Kinetic 289 | . 41 128 22 46 52 Thermal 42 | . 7 . . . 35 Explosive . | . . . . . . Electromagnetic . | . . . . . . Robot Hit Streak 15 | . 10 12 10 15 12 Robot Miss Streak 3 | . 2 3 2 2 3 Penetration Max . | . . . . . . Secondary Targets 7 | . 3 3 1 . . Max Gunslinging Chain 1 | . 1 1 1 . . Shots Hit Robots 253 | . 59 83 16 36 59 Core Hits 87 | . 22 31 5 13 16 Critical Kills . | . . . . . . Critical Parts Destroyed 1 | . . 1 . . . Critical Strikes 2 | . 1 1 . . . Burn 1 | . 1 . . . . Destroy 1 | . . 1 . . . Melee Attacks 29 | . 29 . . . . Impact . | . . . . . . Slashing . | . . . . . . Piercing . | . . . . . . Sneak Attacks 15 | . 15 . . . . Combat Hostiles . | . . . . . . Follow-up Attacks . | . . . . . . Damage Inflicted 3330 | . 432 1109 269 506 1014 Guns 3325 | . 432 1109 269 501 1014 Cannons . | . . . . . . Explosions . | . . . . . . Melee . | . . . . . . Ramming 5 | . . . . 5 . Kinetic 2865 | . 372 1109 269 501 614 Thermal 460 | . 60 . . . 400 Explosive . | . . . . . . Electromagnetic . | . . . . . . Impact . | . . . . . . Slashing . | . . . . . . Piercing . | . . . . . . Highest Corruption 3 | . . 3 3 . . Average Corruption 2 | . . 2 3 . . Corruption Purged . | . . . . . . Corruption Blocked . | . . . . . . Effects 35 | . . 13 22 . . Message Errors 4 | . . 3 1 . . Matter Fused 12 | . . 4 8 . . Heat Flow Errors 6 | . . 3 3 . . Energy Discharges 5 | . . 2 3 . . Data Loss (minor) 5 | . . . 5 . . Data Loss (major) 1 | . . . 1 . . Misfires 2 | . . 1 1 . . Overload Shots . | . . . . . . Overflow Damage . | . . . . . . Projectiles . | . . . . . . Explosions . | . . . . . . Melee . | . . . . . . Knockbacks . | . . . . . . Impact . | . . . . . . Kinetic . | . . . . . . Secondary . | . . . . . . Self-Inflicted Damage . | . . . . . . Shots . | . . . . . . Rammed 1 | . . . . 1 . Targets Rammed 1 | . . . . 1 . Kicked . | . . . . . . Crushed . | . . . . . . Highest Temperature 598 | . 108 210 266 340 598 Average Temperature 104 | . 24 36 93 81 206 Received Heat Transfer 1584 | . 126 453 96 180 729 Effects 18 | . . . . . 18 Shutdowns 2 | . . . . . 2 Energy Bleed 3 | . . . . . 3 Interference 3 | . . . . . 3 Matter Decay 2 | . . . . . 2 Short Circuit 4 | . . . . . 4 Damage (major) 3 | . . . . . 3 Damage (core) 1 | . . . . . 1 Siege Activations . | . . . . . . Robots Corrupted . | . . . . . . Combat Hostiles . | . . . . . . Parts Fried . | . . . . . . Impact Corruptions . | . . . . . . Robots Melted . | . . . . . . Combat Hostiles . | . . . . . . Parts Melted 5 | . 2 . 1 . 2 Heat Transferred 999 | . 259 . . . 740 Parts Sabotaged . | . . . . . . Parts Stolen . | . . . . . . Parts Stripped . | . . . . . . Power Chain Reactions . | . . . . . . Alert | -11 -10 -9 -9 -8 -8 ------- Run | Yrd Mat Mat Min Mat Sto Peak Influence 274 | . 195 274 160 163 174 Initial 99 | . . 52 99 . 14 Average 75 | . 75 123 50 37 49 Maximum Alert Level 1 | . . 1 . . . Low Security (%) 95 | 100 100 86 100 100 100 Level 1 4 | . . 13 . . . Level 2 . | . . . . . . Level 3 . | . . . . . . Level 4 . | . . . . . . Level 5 . | . . . . . . High Security . | . . . . . . Max Security . | . . . . . . Squads Dispatched 4 | . 2 1 . . 1 Investigation 1 | . 1 . . . . Extermination . | . . . . . . Reinforcement 2 | . 1 1 . . . Assault . | . . . . . . Garrison 1 | . . . . . 1 Intercept . | . . . . . . Searches Triggered . | . . . . . . Construction Impeded . | . . . . . . Haulers Reinforced . | . . . . . . Active Scanning Responses . | . . . . . . Cargo Convoy Interrupts . | . . . . . . Stealth | -11 -10 -9 -9 -8 -8 --------- Run | Yrd Mat Mat Min Mat Sto Distress Signals 6 | . 1 4 . . 1 Communications Jammed . | . . . . . . Distress Signals . | . . . . . . Times Spotted 90 | . 22 38 3 8 19 Peak Tracking Total 8 | . 4 5 3 3 8 Tactical Retreats 6 | . 1 3 . 1 1 Traps | -11 -10 -9 -9 -8 -8 ------- Run | Yrd Mat Mat Min Mat Sto Traps Triggered 4 | . 1 2 . . 1 Indirectly . | . . . . . . Trap Hack Attempts . | . . . . . . Triggered . | . . . . . . Disarmed . | . . . . . . Reprogrammed . | . . . . . . Reused . | . . . . . . Traps Extracted . | . . . . . . Installed . | . . . . . . Triggered . | . . . . . . Machines | -11 -10 -9 -9 -8 -8 ---------- Run | Yrd Mat Mat Min Mat Sto Machines Disabled 3 | . . 2 . . 1 Max in Single Turn 1 | . . 1 . . 1 Machines Repaired . | . . . . . . Machines Dismantled . | . . . . . . Machines Sabotaged . | . . . . . . Overloaded Fab Kills . | . . . . . . Hacking | -11 -10 -9 -9 -8 -8 --------- Run | Yrd Mat Mat Min Mat Sto Machines Accessed 19 | . 6 7 . 4 2 Terminals 15 | . 6 5 . 3 1 Fabricators . | . . . . . . Repair Stations 1 | . . 1 . . . Recycling Units 2 | . . 1 . 1 . Scanalyzers . | . . . . . . Garrison Access 1 | . . . . . 1 Total Hacks 50 | . 18 20 . 9 3 Successful 32 | . 12 13 . 5 2 Failed 16 | . 6 5 . 4 1 Catastrophic 3 | . . 1 . 1 1 Database Lockouts 2 | . . 2 . . . Manual 1 | . . . . . 1 Terminals 41 | . 18 15 . 6 2 Fabricators . | . . . . . . Repair Stations 2 | . . 2 . . . Recycling Units 6 | . . 3 . 3 . Scanalyzers . | . . . . . . Garrison Access 1 | . . . . . 1 Terminal Hacks 25 | . 12 8 . 3 2 Record 10 | . 3 7 . . . Robot Analysis 3 | . 2 . . 1 . Branch Access Points 1 | . 1 . . . . Emergency Access Points 2 | . 1 1 . . . Alert Level 3 | . 2 . . 1 . Locate Traps 1 | . 1 . . . . Dispatch Records 1 | . 1 . . . . Transport Status 1 | . . . . . 1 Reinforcement Status 2 | . 1 . . 1 . Zone Layout 1 | . . . . . 1 Fabricator Hacks . | . . . . . . Repair Station Hacks 2 | . . 2 . . . Scan Component 1 | . . 1 . . . Repair 1 | . . 1 . . . Recycling Unit Hacks 5 | . . 3 . 2 . Process 2 | . . 1 . 1 . Report Inventory 2 | . . 2 . . . Retrieve Matter 1 | . . . . 1 . Scanalyzer . | . . . . . . Garrison Access Hacks . | . . . . . . Unauthorized Hacks . | . . . . . . Terminals . | . . . . . . Fabricators . | . . . . . . Repair Stations . | . . . . . . Recycling Units . | . . . . . . Scanalyzers . | . . . . . . Garrison Access . | . . . . . . Data Cores Recovered . | . . . . . . Used . | . . . . . . Hacking Detections 17 | . 6 6 . 3 2 Full Trace Events . | . . . . . . Feedback Events . | . . . . . . Feedback Blocked . | . . . . . . Robot Schematics Acquired . | . . . . . . Robots Built . | . . . . . . Authchips . | . . . . . . Time . | . . . . . . Total Robot Build Rating . | . . . . . . Part Schematics Acquired . | . . . . . . Parts Built . | . . . . . . Authchips . | . . . . . . Time . | . . . . . . Total Part Build Rating . | . . . . . . Parts Repaired 1 | . . 1 . . . Time 32 | . . 32 . . . Parts Recycled . | . . . . . . Recycled Matter 272 | . . 160 . 112 . Retrieved Matter 112 | . . . . 112 . Retrieved Components . | . . . . . . Parts Scanalyzed . | . . . . . . Part Schematics Acquired . | . . . . . . Parts Damaged . | . . . . . . Bothacking | -11 -10 -9 -9 -8 -8 ------------ Run | Yrd Mat Mat Min Mat Sto Used RIF Installer . | . . . . . . Robots Hacked 16 | . 12 . . 2 2 Non-combat 12 | . 9 . . 1 2 Combat 4 | . 3 . . 1 . Robot Hacks Applied 24 | . 19 . . 2 3 parse_system 11 | . 9 . . 1 1 no_distress 9 | . 7 . . . 2 find_recycling 1 | . 1 . . . . check_alert 3 | . 2 . . 1 . Relay Couplers Released . | . . . . . . Fabnet Peak Effective % . | . . . . . . Robots Rewired . | . . . . . . Allies Hacked . | . . . . . . Hacks Repelled . | . . . . . . Allies | -11 -10 -9 -9 -8 -8 -------- Run | Yrd Mat Mat Min Mat Sto Total Allies 2 | . . . 2 . . Largest Group 2 | . . . 2 . . Highest-Rated Group 49 | . . . 49 . . Highest-Rated Ally 31 | . . . 31 . . Total Orders . | . . . . . . Ally Attacks 11 | . . . 11 . . Total Damage 123 | . . . 123 . . Kills 2 | . . . 2 . . Allies Corrupted . | . . . . . . Allies Melted . | . . . . . . Intel | -11 -10 -9 -9 -8 -8 ------- Run | Yrd Mat Mat Min Mat Sto Robot Analysis Total 3 | . 2 . . 1 . Derelict Logs Recovered 2 | . . . 2 . . Drone Launches . | . . . . . . Drone Recoveries . | . . . . . . Exploration | -11 -10 -9 -9 -8 -8 ------------- Run | Yrd Mat Mat Min Mat Sto Turns Passed 5019 | 72 1113 1503 1072 631 628 Spaces Moved 2337 | 39 552 610 585 285 266 Core 9 | 9 . . . . . Treads 1571 | 30 552 160 278 285 266 Legs 757 | . . 450 307 . . Wheels . | . . . . . . Hover . | . . . . . . Flight . | . . . . . . Fastest Speed 50 | 50 160 160 160 160 163 Average Speed 174 | 153 160 191 175 172 163 Slowest Speed 320 | 200 160 320 190 240 165 Overloaded Moves . | . . . . . . Propulsion Burnouts . | . . . . . . Robots Hopped . | . . . . . . Cave-ins Triggered . | . . . . . . Exploration Rate (%) 47 | 4 83 50 100 18 27 Regions Visited 5 Branch Regions 2 Pre-discovered Areas 2 | . . . 2 . . Known Exits Taken . | . . . . . . Unknown Exits Taken 5 | 1 1 1 1 1 . Scrap Searched 1 | . . . 1 . . Spaces Dug . | . . . . . . Terrain Destroyed . | . . . . . . Melee . | . . . . . . Projectile . | . . . . . . AOE . | . . . . . . Terrain Rammed . | . . . . . . Walls Destroyed . | . . . . . . Machines Disabled . | . . . . . . Actions | -11 -10 -9 -9 -8 -8 --------- Run | Yrd Mat Mat Min Mat Sto Total 2993 | 48 721 823 611 395 395 Wait 335 | . 85 119 12 54 65 Move 2332 | 38 551 609 584 284 266 Hop . | . . . . . . Pick Up 53 | 4 13 13 . 17 6 Fast Attach 6 | 6 . . . . . Attach 27 | . 2 8 1 9 7 Detach 4 | . . . . 2 2 Swap 20 | . 9 4 2 2 3 Drop 20 | . 8 5 . 4 3 Fire 166 | . 24 65 12 22 43 Melee 29 | . 29 . . . . Ram . | . . . . . . Kick . | . . . . . . Crush 1 | . . . . 1 . Escape Stasis . | . . . . . . Rewire . | . . . . . . Trap . | . . . . . . Miscellaneous . | . . . . . . Route ------- -11/Scrapyard -10/Materials (discovered 4 exits: *Mat x2 / *Min x2) -9/Materials (discovered 2 exits: *Mat / [*Min]) -9/Mines (discovered 2 exits: *Mat x2) -8/Materials -8/Storage History --------- Turn | Location | Event 17 | -11/Scrapyard | Discovered new exit (range 16) 73 | -11/Scrapyard | Entered Materials 86 | -10/Materials | Identified exit to Mines 314 | -10/Materials | Build established: Mutant 510 | -10/Materials | Discovered new exit (range 5) 1079 | -10/Materials | Discovered new exit (range 15) 1186 | -10/Materials | Entered another Materials area 1186 | -9/Materials | Evolved 2 slots: Propulsion x1, Utility x1 1349 | -9/Materials | Repaired Med. Armor Plating 1443 | -9/Materials | Discovered new exit (range 15) 1683 | -9/Materials | Lost 3 parts (2n1w) 1964 | -9/Materials | Central database locked down 1964 | -9/Materials | Central database locked down 2186 | -9/Materials | Discovered new exit (range 4) 2689 | -9/Materials | Entered Mines 3043 | -9/Mines | Discovered new exit (range 13) 3189 | -9/Mines | Learned location of Zion (-7) 3391 | -9/Mines | Discovered new exit (range 8) 3761 | -9/Mines | Entered Materials 3761 | -8/Materials | Evolved 2 slots: Utility x1, Weapon x1 3904 | -8/Materials | Discovered new exit (range 16) 4181 | -8/Materials | Build established: Gunner 4392 | -8/Materials | Entered Storage 4623 | -8/Storage | Lost 4 parts (1n2u1w) 4972 | -8/Storage | Garrison activated, responded to threat 4995 | -8/Storage | Core integrity fell below 50% 5015 | -8/Storage | Core integrity fell below 20% 5020 | -8/Storage | Destroyed by Y-45 Defender with Beam Rifle Last Messages --------------- 05005_ Recoil Stabilizer destroyed. 05005_ Critical hit (Burn: +37). 05005_ K-01 Serf cleans the Recycling Unit. 05008_ S-10 Pest suffers critical hit (Burn). 05008_ S-10 Pest destroyed. 05008_ Insulated Plating destroyed. 05008_ K-01 Serf collects debris. 05010_ Imp. Ion Engine broken. 05010_ Overheating: Short circuit. 05010_ M-13 Machinist repairs G-47 Trooper. 05011_ Broken Autogun destroyed. 05011_ Hvy. Assault Rifle destroyed. 05011_ K-01 Serf cleans the Recycling Unit. 05013_ K-01 Serf collects debris. 05014_ Broken Imp. Ion Engine destroyed. 05014_ K-01 Serf cleans the Recycling Unit. 05016_ M-13 Machinist fits Backup Power I on G-47 Trooper. 05018_ K-01 Serf collects debris. 05019_ Critical hit (Burn: +37). 05019_ K-01 Serf collects debris. Map ----- +----------------------------------------------------+ | ??????????????????????????????????????????????? | | ??????????????????????????????????????????????? | | ??????????????????????????????????????????????? | | ??????????????????????????????????????????????? | | ??????????????????????????????????????????????? | | ??????????????????????????????????????????????? | | ??????????????????????????????????????????????? | | ??????????????????????????????????????????????? | | ??????????????????????????????????????????????? | | ??????????????????????????????????????????????? | | ??????????????????????????????????????????????? | | ??????????????????????????????????????????????? | | ??????????????????????????????????????????????? | | ??????????????????????????????????????????????? | | ??????????????????????? ??????????????????????? | | ??????????????????????? #?????????????????????? | | ??????????????????????? #?????????????????????? | | ??????????????????????? #?????????????????????? | | ??????????????????????? #?????????????????????? | | ?????????????????######+####??????????????????? | | ?????????????????? #??????????????????? | | ??????????????????# """" #??????????????????? | | ??????????????????# """" #??????????????????? | | ??????????????????# Yk""" #??????????????????? | | ??????????????????# Y""" #??????????????????? | | ??????????????????# s@ [ #??????????????????? | | ??????????????????# "Y"sk #??????????????????? | | ??????????????????# """ #??????????????????? | | ??????????????????# #??????????????????? | | ??????????????????#####/###############???????? | | ?????????????????????# m%+ ## #######?? | | ?????????????????????# # %""" # #?? | | ??????????????????#### g # "?"""" # """ #?? | | ??????????????????#""" # ="?"" " # """ ### | | ??????????????????#"G + "?"" " # """ + | | ??????????????????#""" #= """" " # # | | ??????????????????#### # """ # """ ### | | ?????????????????????# # # """ #?? | | ?????????????????????# ########### """ #?? | | ????????????????????## ##????????# #?? | | ??????????########### ##################### | | ??????????# | | ??????????# | | ??????????# | | ??????????########### ##################"T" | | ????????????????????#######????????????????#""" | | ???????????????????????????????????????????#### | | | | | | | +----------------------------------------------------+ Best States ------------- Heat Dissipation 31 Energy Generation 12 Energy Capacity 265 Matter Stores 300 Matter Capacity 300 Sight Range 16 Terrain Scan Density 10 Armor Coverage 450 Resistance: EM 15 Evasion (%) 40 Recoil Reduction 11 Item Schematics ----------------- None Robot Schematics ------------------ None Fabricated ------------ Nothing Alien Tech Used ----------------- None Achievements -------------- Armchair Analyst Challenges ------------ None Game ------ Seed ImpulsePhysicsDrivehammer Manual? 0 Play Time 00:47:50 Cumulative 16.8 hours Start 2025.01.18 @ 00:05:49 End 2025.01.19 @ 00:27:13 Sessions 5 Manual Loads 0 Difficulty Rogue Special Mode None Game No. 24 Rogue 24 Adventurer 0 Explorer 0 Win Type - Total 0 Types 0/0/0/0/0/0/0/0/0 Lore% 14 Gallery% 18 Achievement% 16 Wizard Run 0 Options --------- Layout 0 ASCII 0 Keyboard 0 Movement Mouse Keybinds 0 Fullscreen 1 Font 24/Smallcaps Map View 76x50 Zoom Use 0% Tactical HUD 1 Map Filters NONE Filters NONE Steam 1 RUN: c3fca003-0d27-4ce1-8ecb-dd6da2ce8940